bitfinex-derivatives/quotes_BTCF0:USTF0_20241217
["timestamp","ask_amount","ask_price","bid_price","bid_amount"]
[1734442737391,0.40744536,107450.0,107440.0,0.00010476]
[1734442737588,0.60275863,107450.0,107440.0,0.00010476]
[1734442741594,0.51954536,107450.0,107440.0,0.00010476]
[1734442744292,0.11220436,107450.0,107440.0,0.49066303]
[1734442744597,0.00010436,107450.0,107440.0,0.60266303]
[1734442744798,0.00010436,107450.0,107440.0,0.71596303]
[1734442746384,0.00010436,107450.0,107440.0,1.21509698]
[1734442746593,0.00010436,107450.0,107440.0,1.77697805]
[1734442746783,0.00010436,107450.0,107440.0,1.2778441]
[1734442746982,0.00010436,107450.0,107440.0,1.77526594]
[1734442747384,0.00010436,107450.0,107440.0,1.76653672]
[1734442747692,0.00010436,107450.0,107440.0,0.71596303]
[1734442748183,0.00010436,107450.0,107440.0,0.72927437]
[1734442748386,0.00010436,107450.0,107440.0,1.59115544]
[1734442748598,0.00010436,107450.0,107440.0,1.29115544]
[1734442749201,0.046534,107470.0,107440.0,1.59115544]
[1734442749401,0.046534,107470.0,107460.0,0.49054927]
[1734442750295,0.04660923,107470.0,107460.0,0.49054927]
[1734442750796,0.04660923,107470.0,107460.0,0.57376254]
[1734442750797,7.523e-05,107470.0,107460.0,0.57376254]
[1734442750991,7.523e-05,107470.0,107460.0,0.93456254]
[1734442751396,0.046525,107490.0,107480.0,0.046528]
[1734442751592,0.046525,107490.0,107480.0,0.49054127]
[1734442752502,0.04662929,107490.0,107480.0,0.49054127]
[1734442753596,0.00010429,107490.0,107480.0,0.85134127]
[1734442753797,0.00010429,107490.0,107480.0,0.96304127]
[1734442754301,0.146521,107500.0,107480.0,1.34625454]
[1734442754302,0.1,107500.0,107480.0,1.34625454]
[1734442754600,0.59269222,107530.0,107490.0,0.49053627]
[1734442754903,0.046512,107520.0,107510.0,0.407314]
[1734442755196,0.04651,107530.0,107520.0,0.04651]
[1734442755398,0.04658696,107530.0,107520.0,0.12979571]
[1734442755610,0.04658696,107530.0,107520.0,0.49059571]
[1734442756218,7.696e-05,107530.0,107520.0,0.49059571]
[1734442757095,0.04658296,107530.0,107520.0,0.40738244]
[1734442760705,7.696e-05,107530.0,107520.0,0.49059571]
[1734442761603,0.04658296,107530.0,107520.0,0.49059571]
[1734442762910,0.04658296,107530.0,107520.0,0.40738244]
[1734442763108,7.696e-05,107530.0,107520.0,0.40738244]
[1734442763310,7.696e-05,107530.0,107520.0,0.49059571]
[1734442764602,7.696e-05,107530.0,107520.0,0.79059571]
[1734442765311,7.696e-05,107530.0,107520.0,0.87380898]
[1734442765498,0.046499,107550.0,107520.0,0.92031898]
[1734442765704,0.046499,107550.0,107540.0,0.407302]
[1734442766710,0.04660473,107550.0,107540.0,0.407302]
[1734442767305,0.04649,107570.0,107560.0,0.04649]
[1734442768010,0.49050327,107570.0,107560.0,0.04649]
[1734442768306,0.12977547,107570.0,107560.0,0.04649]
[1734442768512,0.12977547,107570.0,107550.0,0.3608]
[1734442768810,0.12977547,107570.0,107550.0,0.407296]
[1734442768811,0.046493,107560.0,107550.0,0.407296]
[1734442769000,0.046493,107560.0,107550.0,0.41924792]
[1734442769401,0.12977547,107570.0,107560.0,0.046493]
[1734442769609,0.0465622,107570.0,107560.0,0.046493]
[1734442770406,0.12977547,107570.0,107560.0,0.046493]
[1734442770612,0.59657547,107570.0,107560.0,0.046493]
[1734442770912,0.046493,107560.0,107550.0,0.05844692]
[1734442771109,0.4668722,107570.0,107550.0,0.046495]
[1734442771412,0.1525612,107570.0,107560.0,0.046493]
[1734442771996,0.23577447,107570.0,107560.0,0.046493]
[1734442772621,0.59657647,107570.0,107550.0,0.046494]
[1734442772909,0.5133632,107570.0,107550.0,0.046494]
[1734442773107,0.12970627,107560.0,107550.0,0.046494]
[1734442775514,0.23740627,107560.0,107550.0,0.046494]
[1734442775708,0.1077,107560.0,107550.0,0.046494]
[1734442777013,0.59657547,107570.0,107550.0,0.09299]
[1734442777213,0.70787547,107570.0,107550.0,0.046494]
[1734442777719,0.12970627,107560.0,107550.0,0.046494]
[1734442777923,0.046497,107550.0,107540.0,0.41938349]
[1734442778101,0.12971027,107550.0,107540.0,0.046501]
[1734442778308,0.046502,107540.0,107530.0,0.151905]
[1734442778504,0.3608,107550.0,107530.0,0.12971827]
[1734442778801,0.6246632,107570.0,107560.0,0.046493]
[1734442779011,0.6246632,107570.0,107540.0,0.60231227]
[1734442779214,0.70787647,107570.0,107550.0,0.046493]
[1734442779416,0.66138547,107570.0,107550.0,0.046493]
[1734442779608,0.046493,107560.0,107550.0,0.046493]
[1734442780316,0.407293,107560.0,107550.0,0.046493]
[1734442781019,0.046493,107560.0,107550.0,0.046493]
[1734442781718,0.407293,107560.0,107550.0,0.046493]
[1734442782815,0.046493,107560.0,107550.0,0.046493]
[1734442783114,0.407293,107560.0,107550.0,0.046493]
[1734442785513,0.046493,107560.0,107550.0,0.046493]
[1734442785910,0.407293,107560.0,107550.0,0.046493]
[1734442786232,0.046493,107560.0,107550.0,0.046493]
[1734442786520,0.407293,107560.0,107540.0,0.68900949]
[1734442786822,0.45379,107560.0,107540.0,0.64251049]
[1734442787523,0.53725947,107560.0,107540.0,0.53071049]
[1734442787814,0.45379,107560.0,107540.0,0.41921049]
[1734442788022,0.53700327,107560.0,107540.0,0.41921049]
[1734442788207,0.49050627,107560.0,107540.0,0.41921049]
[1734442788411,0.046497,107550.0,107540.0,0.41921049]
[1734442788617,0.44401327,107560.0,107540.0,0.41921049]
[1734442788819,0.49050927,107560.0,107540.0,0.41921049]
[1734442789318,0.62047474,107560.0,107540.0,0.41921049]
[1734442789629,0.57397874,107560.0,107540.0,0.41921049]
[1734442789816,0.49076547,107560.0,107540.0,0.41921049]
[1734442790016,0.49076547,107560.0,107550.0,0.046497]
[1734442790017,0.12996547,107560.0,107550.0,0.046497]
[1734442790319,0.53726247,107560.0,107540.0,0.41921149]
[1734442791213,0.62047574,107560.0,107540.0,0.41921149]
[1734442791414,0.62047574,107560.0,107540.0,0.05841149]
[1734442791929,0.046502,107540.0,107530.0,0.149404]
[1734442792219,0.57398174,107550.0,107540.0,0.046502]
[1734442792428,0.49076847,107550.0,107540.0,0.046502]
[1734442796118,0.49076847,107550.0,107530.0,0.05797752]
[1734442796313,0.407299,107550.0,107530.0,0.05797752]
[1734442796519,0.407299,107550.0,107540.0,0.046502]
[1734442799022,0.046502,107540.0,107530.0,0.05839219]
[1734442799222,0.046502,107540.0,107530.0,0.046503]
[1734442799529,0.4073,107550.0,107530.0,0.046503]
[1734442800015,0.4073,107550.0,107540.0,0.046502]
[1734442801813,0.4073,107550.0,107540.0,0.149302]
[1734442806024,0.3608,107560.0,107540.0,0.149302]
[1734442806232,0.407295,107560.0,107550.0,0.046497]
[1734442806733,0.046497,107550.0,107540.0,0.149299]
[1734442808031,0.10096411,107550.0,107540.0,0.149299]
[1734442808226,0.41526711,107560.0,107540.0,0.149299]
[1734442808434,0.46176211,107560.0,107550.0,0.046497]
[1734442809621,0.407295,107560.0,107550.0,0.046497]
[1734442810223,0.46176211,107560.0,107550.0,0.046497]
[1734442811123,0.046497,107550.0,107540.0,0.259999]
[1734442811530,0.10096411,107550.0,107540.0,0.149299]
[1734442811931,0.10096411,107550.0,107540.0,0.510099]
[1734442812136,0.46176111,107560.0,107540.0,0.510099]
[1734442812439,0.46176111,107560.0,107550.0,0.046497]
[1734442812731,0.046497,107550.0,107540.0,0.1493]
[1734442814039,0.046497,107550.0,107540.0,1.0071102]
[1734442814227,0.046497,107550.0,107540.0,0.6463102]
[1734442815928,0.046497,107550.0,107540.0,0.64639621]
[1734442816129,0.046497,107550.0,107540.0,1.11469621]
[1734442816323,0.046497,107550.0,107540.0,0.75389621]
[1734442816631,0.046495,107560.0,107550.0,0.046495]
[1734442818345,0.046495,107560.0,107550.0,0.407295]
[1734442819135,7.22e-05,107570.0,107560.0,0.046493]
[1734442819338,7.22e-05,107570.0,107560.0,0.4902824]
[1734442819647,7.22e-05,107570.0,107560.0,0.520193]
[1734442820847,7.22e-05,107570.0,107560.0,0.6031824]
[1734442822135,0.0465612,107570.0,107560.0,0.6031824]
[1734442822329,0.0465612,107570.0,107560.0,0.046493]
[1734442823037,0.0465612,107570.0,107560.0,0.05731562]
[1734442823240,0.0465612,107570.0,107560.0,0.17061562]
[1734442823635,0.0465612,107570.0,107560.0,0.25360502]
[1734442824536,0.0465612,107570.0,107560.0,0.61440502]
[1734442826344,0.1295506,107570.0,107560.0,0.05731562]
[1734442826640,0.0465612,107570.0,107560.0,0.05731562]
[1734442827738,0.1506612,107570.0,107560.0,0.05731562]
[1734442828145,0.2609612,107570.0,107560.0,0.01082262]
[1734442828444,0.3439506,107570.0,107550.0,0.407293]
[1734442828629,0.046493,107560.0,107550.0,0.046493]
[1734442828837,0.521693,107560.0,107550.0,0.05726373]
[1734442829340,0.160893,107560.0,107550.0,0.05726373]
[1734442832247,0.160893,107560.0,107550.0,0.046493]
[1734442836556,0.521693,107560.0,107540.0,0.35630202]
[1734442838246,0.521693,107560.0,107540.0,0.27331262]
[1734442838448,0.521693,107560.0,107540.0,0.35630202]
[1734442838646,0.160893,107560.0,107550.0,0.046497]
[1734442838953,0.521693,107560.0,107550.0,0.046497]
[1734442839852,0.4752,107560.0,107550.0,0.046497]
[1734442840044,0.4752,107560.0,107550.0,0.1009423]
[1734442840244,0.521693,107560.0,107550.0,0.1009423]
[1734442841456,0.160893,107560.0,107550.0,0.1009423]
[1734442842848,0.521693,107560.0,107550.0,0.1009423]
[1734442843045,0.521693,107560.0,107550.0,0.0544453]
[1734442847852,0.160893,107560.0,107550.0,0.1009423]
[1734442848051,0.521693,107560.0,107550.0,0.1009423]
[1734442848255,0.160893,107560.0,107550.0,0.1009423]
[1734442848657,0.521693,107560.0,107550.0,0.1009423]
[1734442849259,0.521693,107560.0,107550.0,0.0544453]
[1734442849561,0.046497,107550.0,107530.0,0.49594979]
[1734442849746,0.511901,107540.0,107530.0,0.49594979]
[1734442849949,0.511901,107540.0,107530.0,0.55039509]
[1734442850164,0.6207916,107540.0,107520.0,1.0591429]
[1734442850350,0.6207916,107540.0,107520.0,0.49652616]
[1734442850351,0.4617513,107530.0,107520.0,0.49652616]
[1734442850545,0.4617513,107530.0,107520.0,7.244e-05]
[1734442850546,0.5683513,107530.0,107520.0,7.244e-05]
[1734442850749,0.513906,107530.0,107520.0,0.05451774]
[1734442851463,0.153106,107530.0,107520.0,0.05451774]
[1734442851757,0.513906,107530.0,107520.0,0.10102774]
[1734442851958,0.513906,107530.0,107520.0,0.04658244]
[1734442852765,0.1066,107530.0,107520.0,0.12959862]
[1734442852957,0.619804,107540.0,107530.0,0.046506]
[1734442853258,0.3608,107550.0,107530.0,0.49032218]
[1734442853467,0.407297,107550.0,107540.0,0.12951718]
[1734442853654,0.407297,107550.0,107540.0,0.046501]
[1734442855063,0.046497,107550.0,107540.0,0.046501]
[1734442858371,0.407297,107550.0,107530.0,0.23302218]
[1734442858663,0.407297,107550.0,107540.0,0.046501]
[1734442858864,0.046497,107550.0,107540.0,0.046501]
[1734442861278,0.046501,107540.0,107530.0,0.65721667]
[1734442861662,0.046501,107540.0,107530.0,0.60184528]
[1734442861871,0.046501,107540.0,107530.0,0.44108233]
[1734442862171,0.60151718,107540.0,107530.0,0.49645372]
[1734442862372,0.70671718,107540.0,107530.0,0.49645372]
[1734442862562,0.70671718,107540.0,107530.0,0.44112701]
[1734442864070,0.623701,107540.0,107530.0,0.48763301]
[1734442864271,0.262901,107540.0,107530.0,0.48763301]
[1734442865060,0.1112,107540.0,107530.0,0.48763301]
[1734442865261,0.1112,107540.0,107530.0,0.12952218]
[1734442865462,0.1112,107540.0,107530.0,0.98408673]
[1734442865767,0.1112,107540.0,107530.0,0.48763301]
[1734442866268,0.157701,107540.0,107530.0,0.48763301]
[1734442866670,0.157701,107540.0,107530.0,0.44112701]
[1734442867067,0.518501,107540.0,107530.0,0.44112701]
[1734442867766,0.518501,107540.0,107520.0,0.99532798]
[1734442867965,0.517906,107530.0,107520.0,0.55420097]
[1734442868166,0.517906,107530.0,107520.0,0.49919283]
[1734442868866,0.517906,107530.0,107520.0,0.50769297]
[1734442869073,0.517906,107530.0,107520.0,0.94913979]
[1734442869273,0.157106,107530.0,107520.0,0.99564979]
[1734442869569,0.157106,107530.0,107520.0,0.55420297]
[1734442869976,0.517906,107530.0,107520.0,0.55420297]
[1734442870176,0.157106,107530.0,107520.0,0.55420297]
[1734442870875,0.1106,107530.0,107520.0,0.05774925]
[1734442871768,0.157106,107530.0,107520.0,0.05774925]
[1734442872676,0.157106,107530.0,107520.0,0.04658244]
[1734442873071,0.157106,107530.0,107520.0,7.244e-05]
[1734442873270,0.517906,107530.0,107520.0,0.49652616]
[1734442873576,0.631206,107530.0,107520.0,0.44160958]
[1734442873777,0.631206,107530.0,107520.0,7.244e-05]
[1734442873970,0.71422218,107530.0,107500.0,0.45026636]
[1734442874280,0.407314,107510.0,107500.0,0.93809189]
[1734442874469,0.85113018,107510.0,107500.0,0.44167914]
[1734442874675,1.15113018,107510.0,107500.0,0.44167914]
[1734442874869,1.15113018,107510.0,107480.0,0.55193303]
[1734442874870,0.046527,107490.0,107480.0,0.38658415]
[1734442875070,0.40742695,107490.0,107470.0,0.51622987]
[1734442875376,0.40742695,107490.0,107470.0,0.12964472]
[1734442875574,0.40742695,107490.0,107470.0,0.17617372]
[1734442875966,0.40742695,107490.0,107470.0,0.12964472]
[1734442876169,0.40742695,107490.0,107480.0,0.046527]
[1734442876369,0.36089995,107490.0,107480.0,0.046527]
[1734442876876,0.36089995,107490.0,107480.0,0.12954318]
[1734442877079,0.36089995,107490.0,107480.0,0.62201061]
[1734442877383,9.995e-05,107490.0,107480.0,0.62201061]
[1734442877578,9.995e-05,107490.0,107480.0,0.98281061]
[1734442877877,9.995e-05,107490.0,107480.0,0.7324969]
[1734442878075,9.995e-05,107490.0,107480.0,1.0932969]
[1734442878871,9.995e-05,107490.0,107480.0,0.80814318]
[1734442879081,9.995e-05,107490.0,107480.0,1.3045969]
[1734442879875,9.995e-05,107490.0,107480.0,0.80814318]
[1734442880683,0.04662295,107490.0,107480.0,0.80814318]
[1734442880979,9.995e-05,107490.0,107480.0,0.80814318]
[1734442883279,0.04662295,107490.0,107480.0,0.80814318]
[1734442883474,9.995e-05,107490.0,107480.0,0.80814318]
[1734442886777,9.995e-05,107490.0,107480.0,1.24844706]
[1734442887492,0.04662295,107490.0,107480.0,1.24844706]
[1734442888700,0.04662295,107490.0,107480.0,0.80814318]
[1734442888878,0.04662295,107490.0,107480.0,1.74502246]
[1734442889080,0.04662295,107490.0,107480.0,1.38422246]
[1734442889290,0.04662295,107490.0,107480.0,1.24856874]
[1734442889486,9.995e-05,107490.0,107480.0,1.24856874]
[1734442889687,9.995e-05,107490.0,107480.0,1.74502246]
[1734442889881,9.995e-05,107490.0,107480.0,1.3045969]
[1734442890286,9.995e-05,107490.0,107480.0,1.24867405]
[1734442890489,0.04662295,107490.0,107480.0,1.63420545]
[1734442890685,0.04662295,107490.0,107480.0,1.27340371]
[1734442890886,0.04662295,107490.0,107480.0,1.19367284]
[1734442891195,0.04662295,107490.0,107480.0,0.88787405]
[1734442891589,9.995e-05,107490.0,107480.0,1.24867405]
[1734442891995,9.995e-05,107490.0,107480.0,1.19371378]
[1734442892198,0.04662295,107490.0,107480.0,1.19371378]
[1734442892383,0.04662295,107490.0,107480.0,0.83291378]
[1734442892697,0.04662295,107490.0,107480.0,0.83300054]
[1734442892895,0.04662295,107490.0,107480.0,0.44734318]
[1734442893288,0.04662295,107490.0,107480.0,0.80814318]
[1734442893289,9.995e-05,107490.0,107480.0,0.80814318]
[1734442893489,0.04662295,107490.0,107480.0,0.83308994]
[1734442893794,0.04662295,107490.0,107480.0,0.80814318]
[1734442894198,0.04662295,107490.0,107480.0,0.44734318]
[1734442894388,0.04662295,107490.0,107480.0,0.88787405]
[1734442894884,0.04662295,107490.0,107480.0,0.44734318]
[1734442895098,0.04662295,107490.0,107480.0,0.83313477]
[1734442895597,0.04662295,107490.0,107480.0,1.24867405]
[1734442895799,0.04662295,107490.0,107480.0,0.80814318]
[1734442896297,0.04662295,107490.0,107480.0,0.88787405]
[1734442896489,0.04662295,107490.0,107480.0,1.24867405]
[1734442896794,0.04662295,107490.0,107480.0,1.14217405]
[1734442897001,0.04662295,107490.0,107480.0,1.0941969]
[1734442897194,0.15922295,107490.0,107480.0,0.9867969]
[1734442897590,0.15922295,107490.0,107480.0,0.6259969]
[1734442897785,0.52002295,107490.0,107480.0,0.49645372]
[1734442898003,0.52002295,107490.0,107480.0,0.38615676]
[1734442898304,0.11269995,107490.0,107480.0,0.12954318]
[1734442898602,0.11269995,107490.0,107480.0,0.49034318]
[1734442898810,0.11269995,107490.0,107480.0,0.87649994]
[1734442899597,0.11269995,107490.0,107480.0,0.49034318]
[1734442900295,0.11269995,107490.0,107480.0,0.93162124]
[1734442900685,0.15922295,107490.0,107480.0,0.93162124]
[1734442901895,0.15922295,107490.0,107480.0,1.03742124]
[1734442904099,0.15922295,107490.0,107480.0,1.53387496]
[1734442904394,0.15922295,107490.0,107480.0,0.80207806]
[1734442904606,0.15922295,107490.0,107480.0,0.48780506]
[1734442905592,0.15922295,107490.0,107480.0,0.046527]
[1734442907603,0.52002295,107490.0,107470.0,0.9098786]
[1734442907802,0.046527,107480.0,107470.0,0.9564066]
[1734442907999,0.046527,107480.0,107470.0,0.20051537]
[1734442908000,0.49034318,107480.0,107470.0,0.20051537]
[1734442908200,0.71644318,107480.0,107470.0,1.04989303]
[1734442908401,0.71644318,107480.0,107470.0,0.49796]
[1734442908594,0.71644318,107480.0,107470.0,1.25903708]
[1734442908994,0.71644318,107480.0,107470.0,1.04989303]
[1734442908995,0.633427,107480.0,107470.0,1.04989303]
[1734442909198,0.633427,107480.0,107470.0,0.544491]
[1734442909393,0.159727,107480.0,107470.0,0.544491]
[1734442910014,0.159727,107480.0,107470.0,0.48895241]
[1734442911604,0.52002495,107490.0,107470.0,0.48895241]
[1734442911805,0.52002495,107490.0,107480.0,0.43342833]
[1734442914598,0.52002495,107490.0,107480.0,0.38690133]
[1734442914807,0.60304113,107490.0,107480.0,0.38690133]
[1734442915203,0.17122567,107480.0,107470.0,0.48894941]
[1734442915612,0.17122567,107480.0,107470.0,0.04662854]
[1734442922025,0.17122567,107480.0,107470.0,0.10115596]
[1734442923901,0.17122567,107480.0,107470.0,0.51648338]
[1734442923902,0.12469867,107480.0,107470.0,0.51648338]
[1734442924106,0.12469867,107480.0,107470.0,0.63028338]
[1734442924304,0.12469867,107480.0,107470.0,1.19094563]
[1734442924525,0.08284829,107480.0,107470.0,1.19161151]
[1734442924711,0.03053531,107480.0,107470.0,1.74439982]
[1734442924910,0.07706231,107480.0,107470.0,1.74439982]
[1734442925314,0.07706231,107480.0,107470.0,1.13727349]
[1734442925505,0.07706231,107480.0,107470.0,1.74439982]
[1734442925711,0.07706231,107480.0,107470.0,1.13727349]
[1734442926318,0.07706231,107480.0,107470.0,1.12854427]
[1734442927107,0.07706231,107480.0,107470.0,1.13727349]
[1734442927818,0.07706231,107480.0,107470.0,0.76774427]
[1734442928019,0.07706231,107480.0,107470.0,0.79629055]
[1734442928317,0.07706231,107480.0,107470.0,1.15709055]
[1734442929919,0.07706231,107480.0,107470.0,0.79629055]
[1734442930323,0.07706231,107480.0,107470.0,1.15709055]
[1734442930621,0.07706231,107480.0,107470.0,0.60430224]
[1734442932425,0.07706231,107480.0,107470.0,0.52122854]
[1734442932613,0.07706231,107480.0,107470.0,0.37404992]
[1734442933221,0.07706231,107480.0,107470.0,0.01324992]
[1734442933613,0.07706231,107480.0,107470.0,0.01335975]
[1734442933921,0.07706231,107480.0,107470.0,0.97347706]
[1734442935107,0.07706231,107480.0,107470.0,0.61267706]
[1734442935515,0.07706231,107480.0,107470.0,0.42068875]
[1734442935722,0.07706231,107480.0,107470.0,0.05988875]
[1734442936218,0.07706231,107480.0,107470.0,0.04663883]
[1734442939315,0.07706231,107480.0,107470.0,0.56162736]
[1734442939615,0.74463601,107480.0,107470.0,0.00010983]
[1734442939808,0.85273601,107480.0,107470.0,0.00010983]
[1734442943718,0.76966231,107480.0,107470.0,0.04664083]
[1734442944926,0.85273601,107480.0,107470.0,0.00010983]
[1734442945628,0.76966231,107480.0,107470.0,0.00010983]
[1734442947914,0.85273601,107480.0,107470.0,0.00010983]
[1734442948121,0.82420177,107480.0,107470.0,0.00010983]
[1734442952329,0.8427618,107480.0,107470.0,0.00010983]
[1734442952522,0.87874123,107480.0,107470.0,0.00010983]
[1734442953025,0.76966231,107480.0,107470.0,0.05464929]
[1734442953323,0.82420177,107480.0,107470.0,0.00010983]
[1734442957427,0.84290692,107480.0,107470.0,0.00010983]
[1734442960724,0.89744638,107480.0,107470.0,0.00010983]
[1734442962632,0.78836746,107480.0,107470.0,0.00010983]
[1734442962829,0.89744638,107480.0,107470.0,0.00010983]
[1734442965831,0.046536,107460.0,107450.0,0.41720127]
[1734442966624,0.046536,107460.0,107450.0,0.41726724]
[1734442967027,0.046536,107460.0,107450.0,0.4718067]
[1734442967929,0.046536,107460.0,107450.0,0.41726724]
[1734442968322,0.10107546,107460.0,107450.0,0.41726724]
[1734442968530,0.407336,107460.0,107450.0,0.05646724]
[1734442968837,0.10107546,107460.0,107450.0,0.05646724]
[1734442969137,0.046536,107460.0,107450.0,0.4718067]
[1734442971430,0.046536,107460.0,107450.0,0.05646724]
[1734442971625,0.46187546,107460.0,107450.0,0.05646724]
[1734442971826,0.10107546,107460.0,107450.0,0.05646724]
[1734442973034,0.046536,107460.0,107450.0,0.1110067]
[1734442974336,0.046536,107460.0,107450.0,0.4718067]
[1734442974932,0.046536,107460.0,107450.0,0.41726724]
[1734442980534,0.046536,107460.0,107450.0,0.4718067]
[1734442980947,0.046534,107470.0,107460.0,0.046532]
[1734442982143,0.10107346,107470.0,107460.0,0.046532]
[1734442983737,0.78836746,107480.0,107470.0,0.046532]
[1734442983933,0.56936746,107480.0,107470.0,0.10107146]
[1734442984344,0.20856746,107480.0,107470.0,0.10107146]
[1734442984933,0.14333531,107480.0,107470.0,0.10107146]
[1734442985242,0.14333531,107480.0,107470.0,0.10980068]
[1734442985636,0.14333531,107480.0,107470.0,0.47060068]
[1734442985832,0.03053531,107480.0,107470.0,0.47060068]
[1734442986038,0.03053531,107480.0,107470.0,0.46187146]
[1734442988540,0.07706231,107480.0,107470.0,0.46187146]
[1734442991043,0.03053531,107480.0,107470.0,0.47185693]
[1734442991246,9.995e-05,107490.0,107480.0,0.046527]
[1734442991436,9.995e-05,107490.0,107480.0,0.62190592]
[1734442991943,9.995e-05,107490.0,107480.0,0.84120592]
[1734442992337,0.04662195,107490.0,107480.0,0.84120592]
[1734442992735,0.04662195,107490.0,107480.0,0.78666646]
[1734442994737,0.04662195,107490.0,107480.0,0.84120592]
[1734442995648,9.995e-05,107490.0,107480.0,0.84120592]
[1734443000742,0.04662195,107490.0,107480.0,0.84120592]
[1734443002448,0.04662195,107490.0,107480.0,0.78666646]
[1734443002643,0.04662195,107490.0,107480.0,0.407327]
[1734443003543,0.04662195,107490.0,107480.0,0.46186646]
[1734443003745,0.04662195,107490.0,107480.0,0.05453946]
[1734443003941,0.40742195,107490.0,107480.0,0.05453946]
[1734443004145,0.40742195,107490.0,107480.0,0.10106646]
[1734443004655,0.04662195,107490.0,107480.0,0.10106646]
[1734443005035,0.04662195,107490.0,107470.0,0.41731747]
[1734443005036,0.56302287,107490.0,107470.0,0.00998547]
[1734443005239,0.56302287,107490.0,107450.0,0.10114343]
[1734443005240,0.046535,107460.0,107450.0,0.10114343]
[1734443005448,0.046535,107460.0,107450.0,0.11064678]
[1734443006441,0.046535,107460.0,107450.0,0.47144678]
[1734443007238,0.046535,107460.0,107450.0,0.11064678]
[1734443007447,0.046535,107460.0,107450.0,0.47144678]
[1734443008245,0.046535,107460.0,107450.0,0.11064678]
[1734443009249,0.046532,107470.0,107460.0,0.046531]
[1734443009443,0.046532,107470.0,107460.0,0.15560992]
[1734443010552,0.046532,107470.0,107460.0,0.10107046]
[1734443011151,0.10107146,107470.0,107460.0,0.046531]
[1734443011749,0.407332,107470.0,107460.0,0.046531]
[1734443011949,0.046532,107470.0,107460.0,0.10107046]
[1734443012350,0.407332,107470.0,107460.0,0.10107046]
[1734443014652,0.407332,107470.0,107460.0,0.046531]
[1734443015455,0.407332,107470.0,107460.0,0.10107046]
[1734443015953,0.046532,107470.0,107460.0,0.10107046]
[1734443016461,0.78576646,107480.0,107470.0,0.046531]
[1734443017760,0.731227,107480.0,107470.0,0.046531]
[1734443019062,0.78576646,107480.0,107470.0,0.046531]
[1734443020552,0.731227,107480.0,107470.0,0.046531]
[1734443021958,0.731227,107480.0,107470.0,0.10107046]
[1734443022159,0.3239,107480.0,107470.0,0.10107046]
[1734443022365,0.1111,107480.0,107470.0,0.10107046]
[1734443023559,0.157627,107480.0,107470.0,0.10107046]
[1734443024161,0.21216646,107480.0,107470.0,0.046531]
[1734443024462,0.57296646,107480.0,107470.0,0.046531]
[1734443024855,0.468427,107480.0,107470.0,0.046531]
[1734443025050,0.57750592,107480.0,107470.0,0.046531]
[1734443025258,0.73946646,107480.0,107470.0,0.046531]
[1734443025463,0.046531,107470.0,107460.0,0.158932]
[1734443025655,0.046531,107470.0,107460.0,0.10107146]
[1734443026155,0.407331,107470.0,107460.0,0.046532]
[1734443026372,0.046531,107470.0,107460.0,0.046532]
[1734443027052,0.407331,107470.0,107460.0,0.046532]
[1734443027453,0.046531,107470.0,107460.0,0.046532]
[1734443029460,0.046531,107470.0,107460.0,0.0564984]
[1734443030752,0.407331,107470.0,107460.0,0.0564984]
[1734443030955,0.49043442,107470.0,107460.0,0.0564984]
[1734443031162,0.407331,107470.0,107460.0,0.0564984]
[1734443031862,0.407331,107470.0,107460.0,0.0099664]
[1734443031863,0.49043442,107470.0,107460.0,0.0099664]
[1734443032062,0.49043442,107470.0,107450.0,6.597e-05]
[1734443032370,0.59923842,107460.0,107450.0,0.04660597]
[1734443032563,0.70433842,107460.0,107450.0,6.597e-05]
[1734443032763,0.80883842,107460.0,107450.0,6.597e-05]
[1734443032950,0.725735,107460.0,107450.0,6.597e-05]
[1734443033563,0.725735,107460.0,107450.0,0.00957364]
[1734443033768,0.80883842,107460.0,107450.0,6.597e-05]
[1734443035562,0.89194184,107460.0,107430.0,0.407346]
[1734443035758,0.046544,107440.0,107430.0,0.407346]
[1734443035967,0.44390342,107450.0,107440.0,0.046544]
[1734443035968,0.407342,107450.0,107440.0,0.046544]
[1734443036757,0.407342,107450.0,107440.0,0.04665332]
[1734443037167,0.49044542,107450.0,107440.0,0.04665332]
[1734443037861,0.49044542,107450.0,107440.0,0.00010932]
[1734443044094,0.407342,107450.0,107440.0,0.00010932]
[1734443044388,0.407342,107450.0,107440.0,0.04665332]
[1734443046391,0.40734,107450.0,107440.0,0.04665332]
[1734443047182,0.04654,107450.0,107440.0,0.04665332]
[1734443048191,0.40734,107450.0,107440.0,0.04665332]
[1734443048879,0.04654,107450.0,107440.0,0.04665332]
[1734443049081,0.04654,107450.0,107440.0,0.15355332]
[1734443049293,0.04654,107450.0,107440.0,0.16336072]
[1734443049696,0.40734,107450.0,107440.0,0.16336072]
[1734443050194,0.04654,107450.0,107440.0,0.16336072]
[1734443051290,0.40734,107450.0,107440.0,0.16336072]
[1734443051986,0.04654,107450.0,107440.0,0.16336072]
[1734443053093,0.620636,107460.0,107450.0,0.04654]
[1734443053284,0.407336,107460.0,107450.0,0.12964342]
[1734443053597,0.407336,107460.0,107450.0,0.04654]
[1734443053896,0.046536,107460.0,107450.0,0.04654]
[1734443054193,0.4648,107470.0,107450.0,0.04654]
[1734443054383,0.511334,107470.0,107460.0,0.046535]
[1734443055689,0.150534,107470.0,107460.0,0.046535]
[1734443056501,0.511334,107470.0,107460.0,0.046535]
[1734443056687,0.150534,107470.0,107460.0,0.046535]
[1734443056888,0.63514186,107480.0,107470.0,0.046531]
[1734443057088,0.42564186,107480.0,107470.0,0.12963442]
[1734443057399,0.407329,107480.0,107470.0,0.12963442]
[1734443057795,0.407329,107480.0,107470.0,0.159331]
[1734443058297,0.046529,107480.0,107470.0,0.159331]
[1734443060489,0.49043242,107480.0,107470.0,0.046531]
[1734443060694,0.046531,107470.0,107460.0,0.26954411]
[1734443061996,0.046531,107470.0,107460.0,0.15944411]
[1734443062198,0.49043442,107470.0,107460.0,0.00971011]
[1734443062401,0.49043442,107470.0,107440.0,0.46530932]
[1734443062402,0.04654,107450.0,107440.0,0.15105132]
[1734443062601,0.40734,107450.0,107440.0,0.04665132]
[1734443065106,0.40734,107450.0,107440.0,0.00010932]
[1734443065497,0.85124342,107450.0,107440.0,0.00010932]
[1734443065696,0.95814342,107450.0,107440.0,0.00010932]
[1734443075000,0.87504,107450.0,107440.0,0.00010932]
[1734443075407,0.95814342,107450.0,107440.0,0.00010932]
[1734443077097,0.95814342,107450.0,107420.0,0.16134543]
[1734443077303,0.407348,107430.0,107420.0,0.16134543]
[1734443078006,0.49045142,107430.0,107420.0,0.16134543]
[1734443078202,0.49045142,107430.0,107420.0,0.16142948]
[1734443078604,0.407348,107430.0,107420.0,0.16142948]